[Event "Djerba Festival Blitz 2025"]
[Site "Djerba"]
[Date "2025.02.21"]
[Round "1.1"]
[White "Chaouech, Oussama"]
[Black "Maghsoodloo, Parham"]
[Result "0-1"]
[ECO "E90"]
[WhiteElo "1651"]
[BlackElo "2680"]
[PlyCount "64"]
[EventDate "2025.02.15"]
[EventType "swiss"]
[EventCountry "TUN"]
[TimeControl "180+3"]

1. d4 {[%emt 0:00:04]} Nf6 {[%emt 0:00:03]} 2. c4 {[%emt 0:00:02]} g6 {[%emt 0:00:03]} 3. Nc3 {[%emt 0:00:02]} Bg7 {[%emt 0:00:03]} 4. e4 {[%emt 0:00:03]} d6 {[%emt 0:00:03]} 5. Nf3 {[%emt 0:00:03]} a5 {[%emt 0:00:10]} 6. Bd3 {[%emt 0:00:09]} Nc6 {[%emt 0:00:05]} 7. a3 {[%emt 0:00:10]} Bg4 {[%emt 0:00:07]} 8. Be2 {[%emt 0:00:09]} Nd7 {[%emt 0:00:14]} 9. Be3 {[%emt 0:00:09]} Bxf3 {[%emt 0:00:04]} 10. Bxf3 {[%emt 0:00:03]} e5 {[%emt 0:00:03]} 11. d5 {[%emt 0:00:09]} Nd4 {[%emt 0:00:03]} 12. O-O {[%emt 0:00:17]} O-O {[%emt 0:00:04]} 13. Rb1 {[%emt 0:00:23]} c6 {[%emt 0:00:04]} 14. Bxd4 {[%emt 0:00:08]} exd4 {[%emt 0:00:03]} 15. Ne2 {[%emt 0:00:06]} Qb6 {[%emt 0:00:10]} 16. Nf4 {[%emt 0:00:30]} Ne5 {[%emt 0:00:20]} 17. b3 {[%emt 0:00:12]} a4 {[%emt 0:00:06]} 18. Nd3 {[%emt 0:00:11]} Nxf3+ {[%emt 0:00:05]} 19. gxf3 {[%emt 0:00:19]} axb3 {[%emt 0:00:07]} 20. Qxb3 {[%emt 0:00:07]} Qa6 {[%emt 0:00:22]} 21. Ra1 {[%emt 0:00:27]} cxd5 {[%emt 0:00:03]} 22. cxd5 {[%emt 0:00:10]} Rac8 {[%emt 0:00:08]} 23. Nb4 {[%emt 0:00:05]} Qa7 {[%emt 0:00:06]} 24. Rac1 {[%emt 0:00:03]} Rc3 {[%emt 0:00:05]} 25. Rxc3 {[%emt 0:00:03]} dxc3 {[%emt 0:00:02]} 26. Rc1 {[%emt 0:00:05]} f5 {[%emt 0:00:03]} 27. Rc2 {[%emt 0:00:04]} Qd4 {[%emt 0:00:17]} 28. a4 {[%emt 0:00:08]} fxe4 {[%emt 0:00:05]} 29. fxe4 {[%emt 0:00:03]} Qxe4 {[%emt 0:00:04]} 30. Na2 {[%emt 0:00:04]} Bd4 {[%emt 0:00:08]} 31. Nxc3 {[%emt 0:00:03]} Qe1+ {[%emt 0:00:03]} 32. Kg2 {[%emt 0:00:02]} Rxf2+ {[%emt 0:00:03]} 0-1

[Event "Djerba Festival Blitz 2025"]
[Site "Djerba"]
[Date "2025.02.21"]
[Round "1.2"]
[White "Moussard, Jules"]
[Black "Sazlik, Mucahit"]
[Result "1-0"]
[ECO "D11"]
[WhiteElo "2595"]
[BlackElo "1672"]
[PlyCount "29"]
[EventDate "2025.02.15"]
[EventType "swiss"]
[EventCountry "TUN"]
[TimeControl "180+3"]

1. Nf3 {[%emt 0:00:04]} d5 {[%emt 0:00:04]} 2. c4 {[%emt 0:00:02]} c6 {[%emt 0:00:05]} 3. d4 {[%emt 0:00:04]} Nf6 {[%emt 0:00:03]} 4. e3 {[%emt 0:00:03]} Bg4 {[%emt 0:00:06]} 5. h3 {[%emt 0:00:05]} Bxf3 {[%emt 0:00:03]} 6. Qxf3 {[%emt 0:00:02]} e6 {[%emt 0:00:02]} 7. Nc3 {[%emt 0:00:03]} Bd6 {[%emt 0:00:15]} 8. Bd2 {[%emt 0:00:04]} O-O {[%emt 0:00:04]} 9. g4 {[%emt 0:00:08]} Bc7 {[%emt 0:00:33]} 10. g5 {[%emt 0:00:04]} Nfd7 {[%emt 0:00:06]} 11. h4 {[%emt 0:00:06]} f6 {[%emt 0:00:10]} 12. Bd3 {[%emt 0:00:20]} e5 {[%emt 0:00:13]} 13. Bxh7+ {[%emt 0:00:10]} Kxh7 {[%emt 0:00:12]} 14. Qh5+ {[%emt 0:00:02]} Kg8 {[%emt 0:00:03]} 15. g6 {[%emt 0:00:02]} 1-0

[Event "Djerba Festival Blitz 2025"]
[Site "Djerba"]
[Date "2025.02.21"]
[Round "1.3"]
[White "Ferahi, Tarik"]
[Black "Dardha, Daniel"]
[Result "0-1"]
[ECO "B15"]
[WhiteElo "1612"]
[BlackElo "2652"]
[PlyCount "38"]
[EventDate "2025.02.15"]
[EventType "swiss"]
[EventCountry "TUN"]
[TimeControl "180+3"]

1. e4 {[%emt 0:00:03]} c6 {[%emt 0:00:03]} 2. d4 {[%emt 0:00:03]} d5 {[%emt 0:00:02]} 3. Nc3 {[%emt 0:00:02]} dxe4 {[%emt 0:00:02]} 4. Nxe4 {[%emt 0:00:02]} Nf6 {[%emt 0:00:02]} 5. Nxf6+ {[%emt 0:00:02]} exf6 {[%emt 0:00:02]} 6. Nf3 {[%emt 0:00:03]} Bd6 {[%emt 0:00:03]} 7. c3 {[%emt 0:00:09]} O-O {[%emt 0:00:02]} 8. Bd3 {[%emt 0:00:05]} Re8+ {[%emt 0:00:02]} 9. Be3 {[%emt 0:00:02]} Nd7 {[%emt 0:00:03]} 10. O-O {[%emt 0:00:06]} Nf8 {[%emt 0:00:02]} 11. Qc2 {[%emt 0:00:06]} Ng6 {[%emt 0:00:03]} 12. Bxg6 {[%emt 0:00:05]} hxg6 {[%emt 0:00:02]} 13. h3 {[%emt 0:00:09]} Bf5 {[%emt 0:00:03]} 14. Qd2 {[%emt 0:00:05]} Qd7 {[%emt 0:00:02]} 15. g4 {[%emt 0:00:44]} Bxg4 {[%emt 0:00:03]} 16. hxg4 {[%emt 0:00:02]} Qxg4+ {[%emt 0:00:03]} 17. Kh1 {[%emt 0:00:57]} Qxf3+ {[%emt 0:00:02]} 18. Kg1 {[%emt 0:00:38]} Qg4+ {[%emt 0:00:02]} 19. Kh1 {[%emt 0:00:19]} Qh3+ {[%emt 0:00:02]} 0-1

[Event "Djerba Festival Blitz 2025"]
[Site "Djerba"]
[Date "2025.02.21"]
[Round "1.4"]
[White "Edouard, Romain"]
[Black "Zerarga, Imene"]
[Result "1-0"]
[ECO "E22"]
[WhiteElo "2544"]
[BlackElo "1831"]
[PlyCount "51"]
[EventDate "2025.02.15"]
[EventType "swiss"]
[EventCountry "TUN"]
[TimeControl "180+3"]

1. d4 {[%emt 0:00:04]} Nf6 {[%emt 0:00:03]} 2. c4 {[%emt 0:00:03]} e6 {[%emt 0:00:02]} 3. Nc3 {[%emt 0:00:02]} Bb4 {[%emt 0:00:03]} 4. Nf3 {[%emt 0:00:03]} c5 {[%emt 0:00:03]} 5. Qb3 {[%emt 0:00:05]} Nc6 {[%emt 0:00:12]} 6. d5 {[%emt 0:00:06]} Na5 {[%emt 0:00:15]} 7. Qc2 {[%emt 0:00:02]} Nxc4 {[%emt 0:00:08]} 8. e4 {[%emt 0:00:04]} Nb6 {[%emt 0:00:16]} 9. d6 {[%emt 0:00:05]} O-O {[%emt 0:00:15]} 10. Bg5 {[%emt 0:00:03]} h6 {[%emt 0:00:24]} 11. Bh4 {[%emt 0:00:02]} Qe8 {[%emt 0:00:14]} 12. Bxf6 {[%emt 0:00:08]} gxf6 {[%emt 0:00:03]} 13. h4 {[%emt 0:00:02]} Kg7 {[%emt 0:00:19]} 14. Rh3 {[%emt 0:00:02]} Rg8 {[%emt 0:00:15]} 15. a3 {[%emt 0:00:06]} Ba5 {[%emt 0:00:08]} 16. O-O-O {[%emt 0:00:05]} Bxc3 {[%emt 0:00:13]} 17. Qxc3 {[%emt 0:00:03]} e5 {[%emt 0:00:07]} 18. h5 {[%emt 0:00:05]} Na4 {[%emt 0:00:19]} 19. Qc2 {[%emt 0:00:08]} Nb6 {[%emt 0:00:08]} 20. Nh4 {[%emt 0:00:02]} Kh7 {[%emt 0:00:06]} 21. Nf5 {[%emt 0:02:46]} Rg5 {[%emt 0:00:13]} 22. Ne7 {[%emt 0:00:00]} Qf8 {[%emt 0:00:10]} 23. f4 {[%emt 0:00:00]} exf4 {[%emt 0:00:08]} 24. e5+ {[%emt 0:00:00]} Kh8 {[%emt 0:00:04]} 25. exf6 {[%emt 0:00:00]} Re5 {[%emt 0:00:05]} 26. Rh4 {[%emt 0:00:00]} 1-0

[Event "Djerba Festival Blitz 2025"]
[Site "Djerba"]
[Date "2025.02.21"]
[Round "1.5"]
[White "Minde, Timothe"]
[Black "Kobalia, Mikhail"]
[Result "0-1"]
[ECO "B22"]
[WhiteElo "1879"]
[BlackElo "2538"]
[PlyCount "62"]
[EventDate "2025.02.15"]
[EventType "swiss"]
[EventCountry "TUN"]
[TimeControl "180+3"]

1. e4 {[%emt 0:00:04]} c5 {[%emt 0:00:03]} 2. Nf3 {[%emt 0:00:02]} e6 {[%emt 0:00:02]} 3. c3 {[%emt 0:00:03]} Nf6 {[%emt 0:00:02]} 4. e5 {[%emt 0:00:02]} Nd5 {[%emt 0:00:02]} 5. d4 {[%emt 0:00:03]} cxd4 {[%emt 0:00:02]} 6. cxd4 {[%emt 0:00:02]} d6 {[%emt 0:00:02]} 7. Bc4 {[%emt 0:00:04]} Nb6 {[%emt 0:00:02]} 8. Bd3 {[%emt 0:00:02]} Nc6 {[%emt 0:00:02]} 9. O-O {[%emt 0:00:06]} Nb4 {[%emt 0:00:02]} 10. Be2 {[%emt 0:00:19]} dxe5 {[%emt 0:00:06]} 11. dxe5 {[%emt 0:00:07]} Qxd1 {[%emt 0:00:06]} 12. Bxd1 {[%emt 0:00:02]} Nd3 {[%emt 0:00:09]} 13. Bc2 {[%emt 0:00:18]} Nxc1 {[%emt 0:00:06]} 14. Rxc1 {[%emt 0:00:03]} Bd7 {[%emt 0:00:04]} 15. Be4 {[%emt 0:00:09]} Rb8 {[%emt 0:00:06]} 16. Nbd2 {[%emt 0:00:16]} Be7 {[%emt 0:00:38]} 17. Nb3 {[%emt 0:00:12]} Bd8 {[%emt 0:00:34]} 18. Nc5 {[%emt 0:00:39]} Bc8 {[%emt 0:00:07]} 19. Nd4 {[%emt 0:00:10]} a6 {[%emt 0:00:26]} 20. a4 {[%emt 0:00:40]} Nd5 {[%emt 0:00:02]} 21. Bxd5 {[%emt 0:00:09]} exd5 {[%emt 0:00:02]} 22. Rd1 {[%emt 0:00:09]} O-O {[%emt 0:00:03]} 23. e6 {[%emt 0:00:08]} Bb6 {[%emt 0:00:08]} 24. b4 {[%emt 0:00:05]} Bxc5 {[%emt 0:00:08]} 25. bxc5 {[%emt 0:00:04]} Bxe6 {[%emt 0:00:02]} 26. Nxe6 {[%emt 0:00:08]} fxe6 {[%emt 0:00:02]} 27. Rab1 {[%emt 0:00:03]} Rfc8 {[%emt 0:00:03]} 28. Rb6 {[%emt 0:00:11]} Kf7 {[%emt 0:00:01]} 29. Rc1 {[%emt 0:00:02]} Rc6 {[%emt 0:00:04]} 30. Rxc6 {[%emt 0:00:08]} bxc6 {[%emt 0:00:02]} 31. g3 {[%emt 0:00:06]} Rb4 0-1

[Event "Djerba Festival Blitz 2025"]
[Site "Djerba"]
[Date "2025.02.21"]
[Round "1.7"]
[White "Chargui, Saleh"]
[Black "Oro, Faustino"]
[Result "0-1"]
[ECO "D38"]
[WhiteElo "1709"]
[BlackElo "2447"]
[PlyCount "42"]
[EventDate "2025.02.15"]
[EventType "swiss"]
[EventCountry "TUN"]
[TimeControl "180+3"]

1. d4 {[%emt 0:00:03]} Nf6 {[%emt 0:00:03]} 2. c4 {[%emt 0:00:02]} e6 {[%emt 0:00:03]} 3. Nc3 {[%emt 0:00:02]} d5 {[%emt 0:00:03]} 4. cxd5 {[%emt 0:00:02]} exd5 {[%emt 0:00:02]} 5. Bg5 {[%emt 0:00:03]} Bb4 {[%emt 0:00:05]} 6. Nf3 {[%emt 0:00:04]} h6 {[%emt 0:00:04]} 7. Bxf6 {[%emt 0:00:03]} Qxf6 {[%emt 0:00:03]} 8. e3 {[%emt 0:00:03]} c6 {[%emt 0:00:04]} 9. Be2 {[%emt 0:00:02]} O-O {[%emt 0:00:04]} 10. O-O {[%emt 0:00:02]} Nd7 {[%emt 0:00:02]} 11. Rc1 {[%emt 0:00:03]} Re8 {[%emt 0:00:03]} 12. Qb3 {[%emt 0:00:17]} Bd6 {[%emt 0:00:04]} 13. g3 {[%emt 0:00:21]} Nf8 {[%emt 0:00:03]} 14. Nh4 {[%emt 0:00:26]} Bh3 {[%emt 0:00:04]} 15. Ng2 {[%emt 0:00:06]} Ne6 {[%emt 0:00:02]} 16. Qxb7 {[%emt 0:00:14]} Ng5 {[%emt 0:01:05]} 17. Qxc6 {[%emt 0:00:34]} Nf3+ {[%emt 0:00:02]} 18. Kh1 {[%emt 0:00:04]} Nd2 {[%emt 0:00:34]} 19. Nxd5 {[%emt 0:00:10]} Qe6 {[%emt 0:00:02]} 20. Rg1 {[%emt 0:00:19]} Ne4 {[%emt 0:00:04]} 21. Ngf4 {[%emt 0:00:13]} Nxf2# {[%emt 0:01:30]} 0-1

[Event "Djerba Festival Blitz 2025"]
[Site "Djerba"]
[Date "2025.02.21"]
[Round "1.10"]
[White "Njili, Kamel"]
[Black "Farouz, Paul"]
[Result "1-0"]
[ECO "D10"]
[WhiteElo "2406"]
[BlackElo "1680"]
[PlyCount "71"]
[EventDate "2025.02.15"]
[EventType "swiss"]
[EventCountry "TUN"]
[TimeControl "180+3"]

1. d4 {[%emt 0:00:04]} d5 {[%emt 0:00:04]} 2. c4 {[%emt 0:00:02]} c6 {[%emt 0:00:05]} 3. Nc3 {[%emt 0:00:02]} a6 {[%emt 0:00:02]} 4. Nf3 {[%emt 0:00:19]} dxc4 {[%emt 0:00:03]} 5. a4 {[%emt 0:00:03]} Nf6 {[%emt 0:00:05]} 6. e4 {[%emt 0:00:04]} Bg4 {[%emt 0:00:24]} 7. Bxc4 {[%emt 0:00:22]} e6 {[%emt 0:00:05]} 8. Qb3 {[%emt 0:00:23]} Bxf3 {[%emt 0:00:10]} 9. gxf3 {[%emt 0:00:03]} Qc7 {[%emt 0:00:01]} 10. Bg5 {[%emt 0:00:24]} Nbd7 {[%emt 0:00:04]} 11. Bh4 {[%emt 0:00:08]} Be7 {[%emt 0:00:27]} 12. e5 {[%emt 0:00:56]} Nd5 {[%emt 0:00:13]} 13. Nxd5 {[%emt 0:00:34]} cxd5 {[%emt 0:00:10]} 14. Bxe7 {[%emt 0:00:03]} Kxe7 {[%emt 0:00:03]} 15. Qa3+ {[%emt 0:00:03]} Ke8 {[%emt 0:00:13]} 16. Bd3 {[%emt 0:00:03]} f6 {[%emt 0:00:12]} 17. f4 {[%emt 0:00:03]} Rb8 {[%emt 0:00:05]} 18. Rg1 {[%emt 0:00:06]} Kf7 {[%emt 0:00:04]} 19. Ke2 {[%emt 0:00:02]} b5 {[%emt 0:00:02]} 20. Rac1 {[%emt 0:00:01]} Qb6 {[%emt 0:00:02]} 21. axb5 {[%emt 0:00:03]} a5 {[%emt 0:00:03]} 22. Qa4 {[%emt 0:00:03]} Rhc8 {[%emt 0:00:07]} 23. Rc3 {[%emt 0:00:03]} fxe5 {[%emt 0:00:10]} 24. fxe5 {[%emt 0:00:02]} Kg8 {[%emt 0:00:05]} 25. Rgc1 {[%emt 0:00:03]} Rxc3 {[%emt 0:00:03]} 26. bxc3 {[%emt 0:00:02]} Rf8 {[%emt 0:00:03]} 27. Rf1 {[%emt 0:00:11]} Qd8 {[%emt 0:00:04]} 28. Qc2 {[%emt 0:00:03]} h6 {[%emt 0:00:04]} 29. c4 {[%emt 0:00:02]} Qh4 {[%emt 0:00:03]} 30. cxd5 exd5 31. Qc6 {[%emt 0:00:06]} Qg4+ {[%emt 0:00:08]} 32. f3 {[%emt 0:00:01]} Qh3 {[%emt 0:00:08]} 33. Qxd5+ {[%emt 0:00:03]} Kh8 {[%emt 0:00:02]} 34. Qe4 {[%emt 0:00:02]} Qxh2+ {[%emt 0:00:06]} 35. Rf2 {[%emt 0:00:02]} Qh5 {[%emt 0:00:04]} 36. Qh7# {[%emt 0:00:03]} 1-0

[Event "Djerba Festival Blitz 2025"]
[Site "Djerba"]
[Date "2025.02.21"]
[Round "1.11"]
[White "Badrakova, Kseniya"]
[Black "Willems, Niels"]
[Result "0-1"]
[ECO "B12"]
[WhiteElo "1757"]
[BlackElo "2414"]
[PlyCount "74"]
[EventDate "2025.02.15"]
[EventType "swiss"]
[EventCountry "TUN"]
[TimeControl "180+3"]

1. e4 {[%emt 0:00:03]} c6 {[%emt 0:00:05]} 2. d4 {[%emt 0:00:03]} d5 {[%emt 0:00:02]} 3. e5 {[%emt 0:00:02]} Bf5 {[%emt 0:00:02]} 4. h4 {[%emt 0:00:02]} h5 {[%emt 0:00:02]} 5. Bd3 {[%emt 0:00:02]} Bxd3 {[%emt 0:00:03]} 6. Qxd3 {[%emt 0:00:02]} Qa5+ {[%emt 0:00:02]} 7. b4 {[%emt 0:00:03]} Qxb4+ {[%emt 0:00:05]} 8. Nd2 {[%emt 0:00:03]} e6 {[%emt 0:00:02]} 9. Rb1 {[%emt 0:00:16]} Qe7 {[%emt 0:00:02]} 10. c4 {[%emt 0:00:08]} Nh6 {[%emt 0:00:21]} 11. Rb3 {[%emt 0:00:50]} Nf5 {[%emt 0:00:11]} 12. Ba3 {[%emt 0:00:17]} Qc7 {[%emt 0:00:20]} 13. Bxf8 {[%emt 0:00:08]} Kxf8 {[%emt 0:00:02]} 14. Ngf3 {[%emt 0:00:10]} g6 {[%emt 0:00:19]} 15. O-O {[%emt 0:00:09]} Kg7 {[%emt 0:00:03]} 16. Rfb1 {[%emt 0:00:10]} b6 {[%emt 0:00:21]} 17. cxd5 {[%emt 0:00:24]} cxd5 {[%emt 0:00:05]} 18. Rc3 {[%emt 0:00:07]} Qb7 {[%emt 0:00:12]} 19. Rbc1 {[%emt 0:00:05]} Na6 {[%emt 0:00:07]} 20. a3 {[%emt 0:00:08]} Rhc8 {[%emt 0:00:04]} 21. Ng5 {[%emt 0:00:12]} Nxh4 {[%emt 0:00:25]} 22. g3 {[%emt 0:00:28]} Nf5 {[%emt 0:00:02]} 23. Kg2 {[%emt 0:00:04]} Rxc3 {[%emt 0:00:34]} 24. Rxc3 {[%emt 0:00:03]} Rc8 {[%emt 0:00:03]} 25. Ngf3 {[%emt 0:00:11]} Rxc3 {[%emt 0:00:04]} 26. Qxc3 {[%emt 0:00:02]} Qc7 {[%emt 0:00:02]} 27. Qd3 {[%emt 0:00:07]} Nb8 {[%emt 0:00:02]} 28. Nb3 {[%emt 0:00:03]} Qc4 {[%emt 0:00:10]} 29. Qxc4 {[%emt 0:00:04]} dxc4 {[%emt 0:00:02]} 30. Nc1 {[%emt 0:00:03]} Nc6 {[%emt 0:00:04]} 31. Ne2 {[%emt 0:00:03]} b5 {[%emt 0:00:09]} 32. Kf1 {[%emt 0:00:03]} g5 {[%emt 0:00:05]} 33. Ke1 {[%emt 0:00:03]} g4 {[%emt 0:00:02]} 34. Nd2 {[%emt 0:00:03]} Nfxd4 {[%emt 0:00:02]} 35. Nxd4 {[%emt 0:00:02]} Nxd4 {[%emt 0:00:02]} 36. Ne4 {[%emt 0:00:04]} Nc2+ {[%emt 0:00:04]} 37. Kd2 {[%emt 0:00:02]} Nxa3 {[%emt 0:00:02]} 0-1

[Event "Djerba Festival Blitz 2025"]
[Site "Djerba"]
[Date "2025.02.21"]
[Round "1.12"]
[White "Guinet, Andy"]
[Black "Viers, Emmanuel"]
[Result "0-1"]
[ECO "A01"]
[WhiteElo "1665"]
[BlackElo "2072"]
[PlyCount "64"]
[EventDate "2025.02.15"]
[EventType "swiss"]
[EventCountry "TUN"]
[TimeControl "180+3"]

1. b3 {[%emt 0:00:04]} Nf6 {[%emt 0:00:07]} 2. Bb2 {[%emt 0:00:02]} e6 {[%emt 0:00:02]} 3. e3 {[%emt 0:00:03]} Be7 {[%emt 0:00:02]} 4. Bc4 {[%emt 0:00:02]} b6 {[%emt 0:00:02]} 5. Nf3 {[%emt 0:03:07]} Bb7 {[%emt 0:03:05]} 6. O-O {[%emt 0:00:00]} d5 {[%emt 0:00:00]} 7. Be2 {[%emt 0:00:00]} c5 {[%emt 0:00:00]} 8. d4 {[%emt 0:00:00]} Nbd7 {[%emt 0:00:00]} 9. c4 {[%emt 0:00:00]} cxd4 {[%emt 0:00:00]} 10. exd4 {[%emt 0:00:00]} O-O {[%emt 0:00:00]} 11. Nbd2 {[%emt 0:00:00]} Ne4 {[%emt 0:00:00]} 12. Nxe4 {[%emt 0:00:00]} dxe4 {[%emt 0:00:00]} 13. Nd2 {[%emt 0:00:00]} f5 {[%emt 0:00:00]} 14. Qc2 {[%emt 0:00:00]} Bf6 {[%emt 0:00:00]} 15. Rae1 {[%emt 0:00:00]} Rc8 {[%emt 0:00:00]} 16. a4 {[%emt 0:00:00]} Nb8 {[%emt 0:00:00]} 17. Bd1 {[%emt 0:00:00]} Bxd4 {[%emt 0:00:00]} 18. Bxd4 {[%emt 0:00:00]} Qxd4 {[%emt 0:00:00]} 19. Re2 {[%emt 0:00:00]} Nc6 {[%emt 0:00:00]} 20. Qb1 {[%emt 0:00:00]} Nb4 {[%emt 0:00:00]} 21. Bc2 {[%emt 0:00:00]} Rfd8 {[%emt 0:00:00]} 22. Rd1 {[%emt 0:00:00]} Qc3 {[%emt 0:00:00]} 23. Bxe4 {[%emt 0:00:00]} Bxe4 {[%emt 0:00:00]} 24. Nxe4 {[%emt 0:00:00]} fxe4 {[%emt 0:00:00]} 25. Rxd8+ {[%emt 0:00:00]} Rxd8 {[%emt 0:00:00]} 26. Rxe4 {[%emt 0:00:00]} Qd3 {[%emt 0:00:00]} 27. Qxd3 {[%emt 0:00:00]} Rxd3 {[%emt 0:00:00]} 28. f4 {[%emt 0:00:00]} Kf7 {[%emt 0:00:00]} 29. Kf2 {[%emt 0:00:01]} Rxb3 {[%emt 0:00:00]} 30. Rd4 {[%emt 0:00:03]} Rd3 {[%emt 0:00:00]} 31. Re4 {[%emt 0:00:03]} Nc6 {[%emt 0:00:13]} 32. Ke2 {[%emt 0:00:07]} Rd4 {[%emt 0:00:04]} 0-1

[Event "Djerba Festival Blitz 2025"]
[Site "Djerba"]
[Date "2025.02.21"]
[Round "1.13"]
[White "Boudriga, Mohamed Ali"]
[Black "Badya, Vasily"]
[Result "1-0"]
[ECO "B07"]
[WhiteElo "2323"]
[BlackElo "1765"]
[PlyCount "79"]
[EventDate "2025.02.15"]
[EventType "swiss"]
[EventCountry "TUN"]
[TimeControl "180+3"]

1. e4 {[%emt 0:00:03]} d6 {[%emt 0:00:02]} 2. d4 {[%emt 0:00:02]} Nf6 {[%emt 0:00:02]} 3. Nc3 {[%emt 0:00:02]} g6 {[%emt 0:00:02]} 4. Be3 {[%emt 0:00:03]} c6 {[%emt 0:00:06]} 5. Qd2 {[%emt 0:00:02]} b5 {[%emt 0:00:02]} 6. Bd3 {[%emt 0:00:02]} Ng4 {[%emt 0:00:12]} 7. Bg5 {[%emt 0:03:10]} h6 {[%emt 0:00:08]} 8. Bh4 {[%emt 0:00:03]} Bg7 {[%emt 0:00:04]} 9. f3 {[%emt 0:00:00]} Nf6 {[%emt 0:00:03]} 10. Nge2 {[%emt 0:00:00]} Nbd7 {[%emt 0:00:03]} 11. g4 {[%emt 0:00:00]} h5 {[%emt 0:00:04]} 12. g5 {[%emt 0:00:00]} Nh7 {[%emt 0:00:08]} 13. f4 {[%emt 0:00:00]} a6 {[%emt 0:00:08]} 14. f5 {[%emt 0:00:00]} c5 {[%emt 0:00:07]} 15. fxg6 {[%emt 0:00:00]} fxg6 {[%emt 0:00:04]} 16. e5 {[%emt 0:00:00]} cxd4 {[%emt 0:00:07]} 17. Bxg6+ {[%emt 0:00:00]} Kf8 {[%emt 0:00:04]} 18. O-O+ {[%emt 0:00:00]} Kg8 {[%emt 0:00:05]} 19. Bf7+ {[%emt 0:00:00]} Kf8 {[%emt 0:00:08]} 20. Bd5+ {[%emt 0:00:00]} Ke8 {[%emt 0:00:49]} 21. Nxd4 {[%emt 0:00:00]} Nxe5 {[%emt 0:00:19]} 22. Bxa8 {[%emt 0:00:42]} Bh3 {[%emt 0:01:22]} 23. Bg2 {[%emt 0:00:00]} Bg4 {[%emt 0:00:00]} 24. Nd5 {[%emt 0:00:00]} Rf8 {[%emt 0:00:00]} 25. h3 {[%emt 0:00:00]} Rxf1+ {[%emt 0:00:00]} 26. Rxf1 {[%emt 0:00:00]} Bd7 {[%emt 0:00:00]} 27. Nf5 {[%emt 0:00:00]} Bxf5 {[%emt 0:00:00]} 28. Rxf5 {[%emt 0:00:00]} Kd7 {[%emt 0:00:01]} 29. Bf2 {[%emt 0:00:00]} Nc4 {[%emt 0:00:03]} 30. Qe2 {[%emt 0:00:00]} Be5 {[%emt 0:00:02]} 31. b3 {[%emt 0:00:05]} Na5 {[%emt 0:00:04]} 32. Bb6 {[%emt 0:00:06]} Qa8 {[%emt 0:00:05]} 33. Nf6+ {[%emt 0:00:04]} Nxf6 {[%emt 0:00:03]} 34. Bxa8 {[%emt 0:00:21]} Ng4 {[%emt 0:00:06]} 35. hxg4 hxg4 36. Rxe5 {[%emt 0:00:00]} dxe5 {[%emt 0:00:06]} 37. Bxa5 {[%emt 0:00:00]} Ke6 {[%emt 0:00:01]} 38. Qxg4+ {[%emt 0:00:00]} Kf7 {[%emt 0:00:02]} 39. Qf5+ {[%emt 0:00:00]} Ke8 {[%emt 0:00:02]} 40. Bc6# {[%emt 0:00:01]} 1-0

[Event "Djerba Festival Blitz 2025"]
[Site "Djerba"]
[Date "2025.02.21"]
[Round "1.14"]
[White "Guinet, Stephane"]
[Black "Amdouni, Zoubaier"]
[Result "1-0"]
[ECO "B30"]
[WhiteElo "1617"]
[BlackElo "2229"]
[PlyCount "52"]
[EventDate "2025.02.15"]
[EventType "swiss"]
[EventCountry "TUN"]
[TimeControl "180+3"]

1. e4 {[%emt 0:00:04]} c5 {[%emt 0:00:05]} 2. Bc4 {[%emt 0:00:02]} e6 {[%emt 0:00:04]} 3. Nf3 {[%emt 0:00:03]} Nc6 {[%emt 0:00:04]} 4. a4 {[%emt 0:00:02]} Nf6 {[%emt 0:00:05]} 5. d3 {[%emt 0:00:03]} Be7 {[%emt 0:00:03]} 6. O-O {[%emt 0:00:02]} d5 {[%emt 0:00:03]} 7. exd5 exd5 {[%emt 0:00:02]} 8. Ba2 {[%emt 0:00:05]} O-O {[%emt 0:00:03]} 9. Bg5 {[%emt 0:00:02]} Be6 {[%emt 0:00:03]} 10. Nbd2 {[%emt 0:00:04]} h6 {[%emt 0:00:02]} 11. Bh4 {[%emt 0:00:02]} Nb4 {[%emt 0:00:15]} 12. c3 {[%emt 0:00:05]} Nxd3 {[%emt 0:00:06]} 13. Nb3 {[%emt 0:00:15]} Nxb2 {[%emt 0:00:05]} 14. Qd2 {[%emt 0:00:09]} Nc4 {[%emt 0:00:11]} 15. Qd3 {[%emt 0:00:07]} Ne4 {[%emt 0:00:08]} 16. Bb1 {[%emt 0:00:06]} Bxh4 {[%emt 0:00:04]} 17. Nxc5 {[%emt 0:00:06]} Bf6 {[%emt 0:00:17]} 18. Nxb7 {[%emt 0:00:03]} Qb6 {[%emt 0:00:05]} 19. Nd4 {[%emt 0:00:27]} Qxb7 {[%emt 0:00:09]} 20. f3 {[%emt 0:00:02]} Ncd2 {[%emt 0:00:30]} 21. Bc2 {[%emt 0:00:09]} Nxf1 {[%emt 0:00:04]} 22. Rxf1 {[%emt 0:00:10]} Bxd4+ {[%emt 0:00:19]} 23. cxd4 {[%emt 0:00:05]} f5 {[%emt 0:00:03]} 24. fxe4 {[%emt 0:00:03]} fxe4 {[%emt 0:00:03]} 25. Qg3 {[%emt 0:00:35]} Rxf1+ 26. Kxf1 {[%emt 0:00:02]} Rf8+ {[%emt 0:00:08]} 1-0

[Event "Djerba Festival Blitz 2025"]
[Site "Djerba"]
[Date "2025.02.21"]
[Round "1.15"]
[White "Bouzidi, Ahmed"]
[Black "Baba, Ayoub"]
[Result "1-0"]
[ECO "B22"]
[WhiteElo "2168"]
[BlackElo "1469"]
[PlyCount "77"]
[EventDate "2025.02.15"]
[EventType "swiss"]
[EventCountry "TUN"]
[TimeControl "180+3"]

1. e4 {[%emt 0:00:03]} c5 {[%emt 0:00:03]} 2. c3 {[%emt 0:00:03]} Nc6 {[%emt 0:00:03]} 3. d4 {[%emt 0:00:02]} d5 {[%emt 0:00:11]} 4. exd5 {[%emt 0:00:03]} Qxd5 {[%emt 0:00:03]} 5. Nf3 {[%emt 0:00:02]} Nf6 {[%emt 0:00:08]} 6. Be3 {[%emt 0:00:02]} e6 {[%emt 0:00:05]} 7. Na3 {[%emt 0:00:04]} a6 {[%emt 0:00:08]} 8. dxc5 {[%emt 0:00:03]} Qxd1+ {[%emt 0:00:09]} 9. Rxd1 {[%emt 0:00:02]} Be7 {[%emt 0:00:11]} 10. Nc4 {[%emt 0:00:04]} Nd5 {[%emt 0:00:10]} 11. Nb6 {[%emt 0:00:11]} Nxb6 {[%emt 0:00:04]} 12. cxb6 {[%emt 0:00:02]} O-O {[%emt 0:00:04]} 13. Bd3 {[%emt 0:00:06]} h6 {[%emt 0:00:09]} 14. O-O {[%emt 0:00:04]} Bd7 {[%emt 0:00:10]} 15. Bxa6 {[%emt 0:00:06]} Bc8 {[%emt 0:00:21]} 16. Bb5 {[%emt 0:00:07]} Rxa2 {[%emt 0:00:11]} 17. Bxc6 {[%emt 0:00:02]} bxc6 {[%emt 0:00:03]} 18. b7 {[%emt 0:00:04]} Rxb2 {[%emt 0:00:10]} 19. bxc8=Q {[%emt 0:00:06]} Rxc8 {[%emt 0:00:03]} 20. Ne5 {[%emt 0:00:05]} Bf6 {[%emt 0:00:06]} 21. Bf4 {[%emt 0:00:18]} c5 {[%emt 0:00:10]} 22. Rd7 {[%emt 0:00:06]} Rb3 {[%emt 0:00:16]} 23. Nxf7 {[%emt 0:00:09]} Rxc3 {[%emt 0:00:13]} 24. g3 {[%emt 0:00:29]} c4 {[%emt 0:00:11]} 25. Re1 {[%emt 0:00:02]} Rd3 {[%emt 0:00:06]} 26. Rxd3 {[%emt 0:00:29]} cxd3 {[%emt 0:00:04]} 27. Nd6 {[%emt 0:00:02]} Rd8 {[%emt 0:00:07]} 28. Ne4 {[%emt 0:00:07]} e5 {[%emt 0:00:09]} 29. Bxh6 {[%emt 0:00:09]} d2 {[%emt 0:00:10]} 30. Bxd2 {[%emt 0:00:04]} Kf7 {[%emt 0:00:15]} 31. h4 {[%emt 0:00:05]} Ke6 {[%emt 0:00:05]} 32. Bg5 {[%emt 0:00:08]} Kf5 {[%emt 0:00:05]} 33. f3 {[%emt 0:00:03]} Kg6 {[%emt 0:00:08]} 34. g4 {[%emt 0:00:04]} Rd3 {[%emt 0:00:05]} 35. h5+ {[%emt 0:00:04]} Kh7 {[%emt 0:00:05]} 36. Kg2 {[%emt 0:00:02]} Bxg5 {[%emt 0:00:06]} 37. Nxg5+ {[%emt 0:00:02]} Kh6 {[%emt 0:00:04]} 38. Nf7+ {[%emt 0:00:04]} Kh7 {[%emt 0:00:03]} 39. Rxe5 {[%emt 0:00:03]} 1-0